[Event "Titled Tuesday Blitz November 22 Early 2022"]
[White "Tologon tegin, Semetei"]
[Black "Muminova, Nafisa"]
[WhiteFideId "13800574"]
[BlackFideId "14201526"]
[WhiteElo "2282"]
[BlackElo "2258"]
[Result "1-0"]
[Round "02"]
[TimeControl "180+1"]
[Date "2022.11.23"]
[WhiteClock "0:00:55"]
[BlackClock "0:00:07"]

1. e4 {[%clk 0:02:52]}  e6 {[%clk 0:02:59]} 2. d4 {[%clk 0:02:51]}  d5 {[%clk 0:02:58]} 3. e5 {[%clk 0:02:52]}  c5 {[%clk 0:02:58]} 4. c3 {[%clk 0:02:52]}  Nc6 {[%clk 0:02:57]} 5. Nf3 {[%clk 0:02:52]}  Qb6 {[%clk 0:02:56]} 6. Be2 {[%clk 0:02:49]}  cxd4 {[%clk 0:02:48]} 7. cxd4 {[%clk 0:02:47]}  Nge7 {[%clk 0:02:48]} 8. Na3 {[%clk 0:02:47]}  Nf5 {[%clk 0:02:47]} 9. Nc2 {[%clk 0:02:47]}  Bb4+ {[%clk 0:02:47]} 10. Kf1 {[%clk 0:02:46]}  Be7 {[%clk 0:02:39]} 11. h4 {[%clk 0:02:41]}  h5 {[%clk 0:02:06]} 12. g3 {[%clk 0:02:39]}  Bd7 {[%clk 0:02:00]} 13. Kg2 {[%clk 0:02:39]}  f6 {[%clk 0:01:44]} 14. Bf4 {[%clk 0:02:24]}  O-O-O {[%clk 0:01:38]} 15. b4 {[%clk 0:02:19]}  Rdg8 {[%clk 0:01:33]} 16. a4 {[%clk 0:02:08]}  g5 {[%clk 0:01:22]} 17. a5 {[%clk 0:02:01]}  Qd8 {[%clk 0:01:16]} 18. hxg5 {[%clk 0:01:43]}  fxg5 {[%clk 0:01:15]} 19. Bd2 {[%clk 0:01:42]}  Qf8 {[%clk 0:01:04]} 20. b5 {[%clk 0:01:41]}  Nd8 {[%clk 0:01:03]} 21. a6 {[%clk 0:01:32]}  b6 {[%clk 0:01:00]} 22. Rc1 {[%clk 0:01:18]}  Kb8 {[%clk 0:01:00]} 23. Ne3 {[%clk 0:01:16]}  h4 {[%clk 0:00:45]} 24. Qc2 {[%clk 0:01:15]}  Bc5 {[%clk 0:00:15]} 25. Nxf5 {[%clk 0:01:04]}  exf5 {[%clk 0:00:11]} 26. dxc5 {[%clk 0:01:04]}  bxc5 {[%clk 0:00:12]} 27. Qxc5 {[%clk 0:00:59]}  Qxc5 {[%clk 0:00:12]} 28. Rxc5 {[%clk 0:00:59]}  Be6 {[%clk 0:00:12]} 29. Bxg5 {[%clk 0:00:58]}  hxg3 {[%clk 0:00:11]} 30. Rxh8 {[%clk 0:00:57]}  Rxh8 {[%clk 0:00:10]} 31. fxg3 {[%clk 0:00:57]}  Nf7 {[%clk 0:00:10]} 32. Bf6 {[%clk 0:00:57]}  Rc8 {[%clk 0:00:08]} 33. Rxc8+ {[%clk 0:00:56]}  Kxc8 {[%clk 0:00:09]} 34. Nd4 {[%clk 0:00:56]}  Kd7 {[%clk 0:00:07]} 35. Nxe6 {[%clk 0:00:55]}  Kxe6 {[%clk 0:00:07]} 36. b6 {[%clk 0:00:55]}  axb6 {[%clk 0:00:07]} 37. a7 {[%clk 0:00:55]} 1-0


[Site "https://www.chess.com"]

[Event "Titled Tuesday Blitz November 22 Early 2022"]
[White "Topalov, Aleksandar"]
[Black "Przybylski, Wojciech"]
[WhiteFideId "925659"]
[BlackFideId "1117599"]
[WhiteElo "2179"]
[BlackElo "2221"]
[Result "1-0"]
[Round "02"]
[TimeControl "180+1"]
[Date "2022.11.23"]
[WhiteClock "0:00:07"]
[BlackClock "0:00:11"]

1. b3 {[%clk 0:03:00]}  e5 {[%clk 0:02:58]} 2. Bb2 {[%clk 0:03:01]}  Nc6 {[%clk 0:02:58]} 3. c4 {[%clk 0:03:00]}  Nf6 {[%clk 0:02:58]} 4. e3 {[%clk 0:03:00]}  Bd6 {[%clk 0:02:56]} 5. Nc3 {[%clk 0:02:56]}  O-O {[%clk 0:02:56]} 6. d3 {[%clk 0:02:51]}  b6 {[%clk 0:02:55]} 7. g3 {[%clk 0:02:44]}  Bb7 {[%clk 0:02:54]} 8. Bg2 {[%clk 0:02:44]}  Qe7 {[%clk 0:02:48]} 9. Nge2 {[%clk 0:02:43]}  Ng4 {[%clk 0:02:43]} 10. h3 {[%clk 0:02:37]}  Nh6 {[%clk 0:02:42]} 11. Nd5 {[%clk 0:02:36]}  Qe6 {[%clk 0:02:37]} 12. O-O {[%clk 0:02:20]}  f5 {[%clk 0:02:37]} 13. Qd2 {[%clk 0:02:17]}  Kh8 {[%clk 0:02:32]} 14. f4 {[%clk 0:02:17]}  Nf7 {[%clk 0:02:21]} 15. Rae1 {[%clk 0:02:15]}  Ne7 {[%clk 0:02:17]} 16. fxe5 {[%clk 0:02:10]}  Nxe5 {[%clk 0:02:12]} 17. Nef4 {[%clk 0:02:10]}  Qf7 {[%clk 0:02:06]} 18. Nxe7 {[%clk 0:02:04]}  Bxg2 {[%clk 0:02:01]} 19. Qxg2 {[%clk 0:01:41]}  Qxe7 {[%clk 0:01:59]} 20. Nd5 {[%clk 0:01:41]}  Qg5 {[%clk 0:01:56]} 21. Nf4 {[%clk 0:01:29]}  Rae8 {[%clk 0:01:52]} 22. Kh2 {[%clk 0:01:20]}  Qh6 {[%clk 0:01:48]} 23. Bxe5 {[%clk 0:01:12]}  Rxe5 {[%clk 0:01:46]} 24. d4 {[%clk 0:01:05]}  Re4 {[%clk 0:01:43]} 25. Qf3 {[%clk 0:01:03]}  Rfe8 {[%clk 0:01:38]} 26. Nd5 {[%clk 0:01:02]}  Rg4 {[%clk 0:01:20]} 27. Rg1 {[%clk 0:00:54]}  Rh4 {[%clk 0:01:14]} 28. Nf4 {[%clk 0:00:54]}  Bxf4 {[%clk 0:01:12]} 29. gxf4 {[%clk 0:00:55]}  Qf6 {[%clk 0:01:05]} 30. Rg5 {[%clk 0:00:49]}  Rf8 {[%clk 0:00:50]} 31. Reg1 {[%clk 0:00:48]}  g6 {[%clk 0:00:49]} 32. Qd5 {[%clk 0:00:45]}  d6 {[%clk 0:00:47]} 33. Qc6 {[%clk 0:00:37]}  Qe7 {[%clk 0:00:46]} 34. R1g3 {[%clk 0:00:36]}  a5 {[%clk 0:00:41]} 35. a3 {[%clk 0:00:35]}  Kg7 {[%clk 0:00:38]} 36. Qd5 {[%clk 0:00:31]}  Qf7 {[%clk 0:00:34]} 37. Qc6 {[%clk 0:00:30]}  Qe7 {[%clk 0:00:24]} 38. b4 {[%clk 0:00:27]}  axb4 {[%clk 0:00:24]} 39. axb4 {[%clk 0:00:28]}  Kh8 {[%clk 0:00:23]} 40. Qd5 {[%clk 0:00:19]}  Rf6 {[%clk 0:00:21]} 41. Kg2 {[%clk 0:00:17]}  Kg7 {[%clk 0:00:21]} 42. Rxf5 {[%clk 0:00:13]}  Re6 {[%clk 0:00:19]} 43. Kf2 {[%clk 0:00:12]}  Kh8 {[%clk 0:00:16]} 44. Rfg5 {[%clk 0:00:12]}  Qf6 {[%clk 0:00:13]} 45. Kg2 {[%clk 0:00:11]}  Qe7 {[%clk 0:00:12]} 46. Qf3 {[%clk 0:00:11]}  Rf6 {[%clk 0:00:11]} 47. f5 {[%clk 0:00:11]}  Qf8 {[%clk 0:00:10]} 48. e4 {[%clk 0:00:10]}  c6 {[%clk 0:00:09]} 49. Qd3 {[%clk 0:00:08]}  d5 {[%clk 0:00:08]} 50. fxg6 {[%clk 0:00:05]}  Rf2+ {[%clk 0:00:07]} 51. Kg1 {[%clk 0:00:05]}  hxg6 {[%clk 0:00:07]} 52. Rxg6 {[%clk 0:00:05]}  Rhf4 {[%clk 0:00:07]} 53. Rg8+ {[%clk 0:00:03]}  Qxg8 {[%clk 0:00:07]} 54. Rxg8+ {[%clk 0:00:04]}  Kxg8 {[%clk 0:00:08]} 55. Qg3+ {[%clk 0:00:04]}  Kf7 {[%clk 0:00:07]} 56. Qxf2 {[%clk 0:00:05]}  Rxf2 {[%clk 0:00:08]} 57. Kxf2 {[%clk 0:00:05]}  dxc4 {[%clk 0:00:08]} 58. Ke3 {[%clk 0:00:05]}  Kf6 {[%clk 0:00:08]} 59. h4 {[%clk 0:00:05]}  Kg6 {[%clk 0:00:08]} 60. e5 {[%clk 0:00:05]}  Kf5 {[%clk 0:00:08]} 61. h5 {[%clk 0:00:05]}  Kg5 {[%clk 0:00:09]} 62. e6 {[%clk 0:00:05]}  Kf6 {[%clk 0:00:09]} 63. h6 {[%clk 0:00:06]}  c3 {[%clk 0:00:10]} 64. h7 {[%clk 0:00:06]}  Kxe6 {[%clk 0:00:10]} 65. h8=Q {[%clk 0:00:06]}  Kd5 {[%clk 0:00:09]} 66. Qh1+ {[%clk 0:00:04]}  Kd6 {[%clk 0:00:09]} 67. Qe4 {[%clk 0:00:04]}  c5 {[%clk 0:00:09]} 68. dxc5+ {[%clk 0:00:04]}  bxc5 {[%clk 0:00:09]} 69. bxc5+ {[%clk 0:00:05]}  Kxc5 {[%clk 0:00:10]} 70. Kd3 {[%clk 0:00:05]}  c2 {[%clk 0:00:09]} 71. Kxc2 {[%clk 0:00:05]}  Kd6 {[%clk 0:00:10]} 72. Kd3 {[%clk 0:00:06]}  Kc5 {[%clk 0:00:10]} 73. Qe5+ {[%clk 0:00:05]}  Kb4 {[%clk 0:00:10]} 74. Qc7 {[%clk 0:00:05]}  Kb5 {[%clk 0:00:09]} 75. Kd4 {[%clk 0:00:05]}  Kb4 {[%clk 0:00:09]} 76. Qc4+ {[%clk 0:00:05]}  Ka5 {[%clk 0:00:10]} 77. Qb3 {[%clk 0:00:06]}  Ka6 {[%clk 0:00:10]} 78. Kc5 {[%clk 0:00:06]}  Ka7 {[%clk 0:00:11]} 79. Kc6 {[%clk 0:00:07]}  Ka8 {[%clk 0:00:11]} 80. Qb7# {[%clk 0:00:07]} 1-0


[Site "https://www.chess.com"]

[Event "Titled Tuesday Blitz November 22 Early 2022"]
[White "Urazayev, Arystanbek"]
[Black "Kleiman, Jake"]
[WhiteFideId "13709810"]
[BlackFideId "2020041"]
[WhiteElo "2441"]
[BlackElo "2574"]
[Result "1-0"]
[Round "02"]
[TimeControl "180+1"]
[Date "2022.11.23"]
[WhiteClock "0:00:39"]
[BlackClock "0:00:03"]

1. d4 {[%clk 0:03:00]}  Nf6 {[%clk 0:02:59]} 2. c4 {[%clk 0:03:01]}  e6 {[%clk 0:03:00]} 3. Nc3 {[%clk 0:03:01]}  Bb4 {[%clk 0:03:00]} 4. e3 {[%clk 0:03:02]}  O-O {[%clk 0:03:00]} 5. Bd3 {[%clk 0:03:02]}  d5 {[%clk 0:03:01]} 6. a3 {[%clk 0:03:02]}  Bxc3+ {[%clk 0:03:00]} 7. bxc3 {[%clk 0:03:03]}  c5 {[%clk 0:02:58]} 8. cxd5 {[%clk 0:03:03]}  exd5 {[%clk 0:02:56]} 9. dxc5 {[%clk 0:03:03]}  Nbd7 {[%clk 0:02:53]} 10. Ne2 {[%clk 0:02:53]}  Nxc5 {[%clk 0:02:53]} 11. Bc2 {[%clk 0:02:49]}  b6 {[%clk 0:02:52]} 12. O-O {[%clk 0:02:49]}  Ba6 {[%clk 0:02:49]} 13. Re1 {[%clk 0:02:46]}  Nce4 {[%clk 0:02:47]} 14. f3 {[%clk 0:02:44]}  Nd6 {[%clk 0:02:37]} 15. a4 {[%clk 0:02:39]}  Re8 {[%clk 0:02:37]} 16. Nd4 {[%clk 0:02:34]}  Rc8 {[%clk 0:02:35]} 17. Qd2 {[%clk 0:02:29]}  Qc7 {[%clk 0:02:30]} 18. Qf2 {[%clk 0:02:26]}  Qxc3 {[%clk 0:02:19]} 19. Bb2 {[%clk 0:02:26]}  Qc7 {[%clk 0:02:12]} 20. Rac1 {[%clk 0:02:17]}  Qd7 {[%clk 0:01:52]} 21. Qg3 {[%clk 0:01:59]}  Nc4 {[%clk 0:01:07]} 22. Nf5 {[%clk 0:01:48]}  Nh5 {[%clk 0:01:00]} 23. Qg4 {[%clk 0:01:48]}  Qe6 {[%clk 0:00:45]} 24. Bxg7 {[%clk 0:01:43]}  Qg6 {[%clk 0:00:35]} 25. Nh6+ {[%clk 0:01:42]}  Kxg7 {[%clk 0:00:34]} 26. Bxg6 {[%clk 0:01:43]}  hxg6 {[%clk 0:00:34]} 27. Nf5+ {[%clk 0:01:43]}  Kg8 {[%clk 0:00:33]} 28. Qg5 {[%clk 0:01:36]}  Rc7 {[%clk 0:00:26]} 29. g4 {[%clk 0:01:30]}  Ng7 {[%clk 0:00:21]} 30. Nh6+ {[%clk 0:01:12]}  Kf8 {[%clk 0:00:15]} 31. Qxd5 {[%clk 0:01:09]}  Re6 {[%clk 0:00:05]} 32. g5 {[%clk 0:00:40]}  Ne8 {[%clk 0:00:03]} 33. Qd4 {[%clk 0:00:41]}  Ke7 {[%clk 0:00:03]} 34. Ng8+ {[%clk 0:00:40]}  Kf8 {[%clk 0:00:03]} 35. Qh8 {[%clk 0:00:39]} 1-0


[Site "https://www.chess.com"]

[Event "Titled Tuesday Blitz November 22 Early 2022"]
[White "Vaibhav Jayant Raut"]
[Black "Izuzquiza Gonzalez, Javier"]
[WhiteFideId "5089034"]
[BlackFideId "3101029"]
[WhiteElo "2147"]
[BlackElo "2034"]
[Result "1-0"]
[Round "02"]
[TimeControl "180+1"]
[Date "2022.11.23"]
[WhiteClock "0:01:48"]
[BlackClock "0:00:36"]

1. c4 {[%clk 0:03:00]}  c5 {[%clk 0:02:58]} 2. g3 {[%clk 0:03:00]}  Nc6 {[%clk 0:02:51]} 3. Bg2 {[%clk 0:03:00]}  g6 {[%clk 0:02:47]} 4. Nc3 {[%clk 0:03:00]}  Bg7 {[%clk 0:02:42]} 5. d3 {[%clk 0:03:00]}  d6 {[%clk 0:02:23]} 6. a3 {[%clk 0:02:54]}  e5 {[%clk 0:02:18]} 7. Rb1 {[%clk 0:02:54]}  Nge7 {[%clk 0:02:15]} 8. b4 {[%clk 0:02:53]}  cxb4 {[%clk 0:02:14]} 9. axb4 {[%clk 0:02:53]}  a6 {[%clk 0:02:14]} 10. h4 {[%clk 0:02:49]}  h5 {[%clk 0:02:10]} 11. Nf3 {[%clk 0:02:48]}  O-O {[%clk 0:02:08]} 12. O-O {[%clk 0:02:47]}  Be6 {[%clk 0:02:03]} 13. Ng5 {[%clk 0:02:45]}  Bg4 {[%clk 0:02:02]} 14. b5 {[%clk 0:02:31]}  axb5 {[%clk 0:01:51]} 15. Nxb5 {[%clk 0:02:31]}  Qd7 {[%clk 0:01:42]} 16. Ne4 {[%clk 0:02:20]}  Nc8 {[%clk 0:01:11]} 17. Bh6 {[%clk 0:02:15]}  Ra2 {[%clk 0:01:06]} 18. Nbc3 {[%clk 0:02:10]}  Ra3 {[%clk 0:01:03]} 19. Bxg7 {[%clk 0:02:09]}  Kxg7 {[%clk 0:01:03]} 20. Qc1 {[%clk 0:02:08]}  Ra6 {[%clk 0:00:59]} 21. Qb2 {[%clk 0:02:08]}  Rb6 {[%clk 0:00:58]} 22. Qd2 {[%clk 0:02:08]}  Rxb1 {[%clk 0:00:58]} 23. Rxb1 {[%clk 0:02:09]}  Nd4 {[%clk 0:00:58]} 24. Qg5 {[%clk 0:02:05]}  f5 {[%clk 0:00:44]} 25. Nc5 {[%clk 0:01:53]}  Qd8 {[%clk 0:00:36]} 26. Rxb7+ {[%clk 0:01:48]} 1-0


[Site "https://www.chess.com"]

[Event "Titled Tuesday Blitz November 22 Early 2022"]
[White "Vlassov, Nikolai"]
[Black "Aradhya, Garg"]
[WhiteFideId "4103360"]
[BlackFideId "25006746"]
[WhiteElo "2324"]
[BlackElo "2223"]
[Result "0-1"]
[Round "02"]
[TimeControl "180+1"]
[Date "2022.11.23"]
[WhiteClock "0:01:01"]
[BlackClock "0:01:40"]

1. e4 {[%clk 0:03:00]}  e5 {[%clk 0:02:59]} 2. Bc4 {[%clk 0:03:00]}  Nf6 {[%clk 0:02:59]} 3. d3 {[%clk 0:03:00]}  c6 {[%clk 0:02:57]} 4. Nf3 {[%clk 0:03:00]}  d5 {[%clk 0:02:57]} 5. Bb3 {[%clk 0:03:00]}  a5 {[%clk 0:02:58]} 6. Nc3 {[%clk 0:02:59]}  Bb4 {[%clk 0:02:57]} 7. a3 {[%clk 0:02:59]}  Bxc3+ {[%clk 0:02:56]} 8. bxc3 {[%clk 0:03:00]}  Bg4 {[%clk 0:02:45]} 9. h3 {[%clk 0:02:56]}  Bxf3 {[%clk 0:02:45]} 10. Qxf3 {[%clk 0:02:55]}  O-O {[%clk 0:02:45]} 11. exd5 {[%clk 0:02:48]}  a4 {[%clk 0:02:42]} 12. Ba2 {[%clk 0:02:45]}  Nxd5 {[%clk 0:02:43]} 13. Bxd5 {[%clk 0:02:39]}  Qxd5 {[%clk 0:02:44]} 14. Qxd5 {[%clk 0:02:39]}  cxd5 {[%clk 0:02:41]} 15. Rb1 {[%clk 0:02:40]}  Rc8 {[%clk 0:02:39]} 16. Rxb7 {[%clk 0:02:33]}  Rxc3 {[%clk 0:02:38]} 17. Kd2 {[%clk 0:02:29]}  Rc8 {[%clk 0:02:37]} 18. Bb2 {[%clk 0:02:28]}  Nc6 {[%clk 0:02:37]} 19. Rb1 {[%clk 0:02:24]}  f6 {[%clk 0:02:35]} 20. Bc1 {[%clk 0:02:18]}  Nd4 {[%clk 0:02:29]} 21. R1b2 {[%clk 0:02:13]}  Rc6 {[%clk 0:02:29]} 22. R7b4 {[%clk 0:01:40]}  Rac8 {[%clk 0:02:25]} 23. c4 {[%clk 0:01:24]}  dxc4 {[%clk 0:02:24]} 24. dxc4 {[%clk 0:01:21]}  Rxc4 {[%clk 0:01:54]} 25. Rxc4 {[%clk 0:01:20]}  Rxc4 {[%clk 0:01:54]} 26. Rb8+ {[%clk 0:01:20]}  Kf7 {[%clk 0:01:54]} 27. Rb7+ {[%clk 0:01:19]}  Kg6 {[%clk 0:01:47]} 28. Bb2 {[%clk 0:01:07]}  Rc2+ {[%clk 0:01:45]} 29. Ke1 {[%clk 0:01:07]}  Nb3 {[%clk 0:01:42]} 30. Bxe5 {[%clk 0:01:02]}  fxe5 {[%clk 0:01:42]} 31. Rb4 {[%clk 0:01:02]}  Nc5 {[%clk 0:01:41]} 32. g3 {[%clk 0:01:01]}  Nd3+ {[%clk 0:01:40]} 0-1


[Site "https://www.chess.com"]

[Event "Titled Tuesday Blitz November 22 Early 2022"]
[White "Yurovskykh, Oleksandr"]
[Black "Hartikainen, Jarmo"]
[WhiteFideId "14134020"]
[BlackFideId "503134"]
[WhiteElo "2265"]
[BlackElo "2195"]
[Result "1-0"]
[Round "02"]
[TimeControl "180+1"]
[Date "2022.11.23"]
[WhiteClock "0:00:15"]
[BlackClock "0:00:01"]

1. g3 {[%clk 0:03:00]}  Nf6 {[%clk 0:02:58]} 2. Bg2 {[%clk 0:03:00]}  g6 {[%clk 0:02:58]} 3. e4 {[%clk 0:03:00]}  d6 {[%clk 0:02:58]} 4. d4 {[%clk 0:02:59]}  Bg7 {[%clk 0:02:57]} 5. Ne2 {[%clk 0:02:59]}  O-O {[%clk 0:02:57]} 6. O-O {[%clk 0:02:59]}  c5 {[%clk 0:02:56]} 7. c3 {[%clk 0:02:58]}  Nc6 {[%clk 0:02:55]} 8. h3 {[%clk 0:02:57]}  e5 {[%clk 0:02:52]} 9. Be3 {[%clk 0:02:26]}  b6 {[%clk 0:02:50]} 10. Qd2 {[%clk 0:02:21]}  Ba6 {[%clk 0:02:48]} 11. d5 {[%clk 0:02:07]}  Ne7 {[%clk 0:02:42]} 12. b3 {[%clk 0:02:03]}  Bxe2 {[%clk 0:02:37]} 13. Qxe2 {[%clk 0:02:03]}  Nd7 {[%clk 0:02:35]} 14. c4 {[%clk 0:02:01]}  f5 {[%clk 0:02:34]} 15. Nc3 {[%clk 0:02:01]}  f4 {[%clk 0:02:22]} 16. Bd2 {[%clk 0:02:00]}  g5 {[%clk 0:02:16]} 17. Bf3 {[%clk 0:01:50]}  Nf6 {[%clk 0:02:11]} 18. Bg4 {[%clk 0:01:50]}  Nxg4 {[%clk 0:02:04]} 19. Qxg4 {[%clk 0:01:51]}  Ng6 {[%clk 0:01:58]} 20. a3 {[%clk 0:01:41]}  Rc8 {[%clk 0:01:46]} 21. Rab1 {[%clk 0:01:40]}  Qf6 {[%clk 0:01:34]} 22. Qe2 {[%clk 0:01:26]}  Kf7 {[%clk 0:01:28]} 23. b4 {[%clk 0:01:13]}  Rh8 {[%clk 0:01:25]} 24. bxc5 {[%clk 0:01:05]}  dxc5 {[%clk 0:01:23]} 25. a4 {[%clk 0:01:02]}  h5 {[%clk 0:01:21]} 26. a5 {[%clk 0:00:52]}  g4 {[%clk 0:01:09]} 27. axb6 {[%clk 0:00:48]}  axb6 {[%clk 0:01:03]} 28. h4 {[%clk 0:00:23]}  Rhf8 {[%clk 0:00:42]} 29. Rb3 {[%clk 0:00:17]}  Rb8 {[%clk 0:00:41]} 30. Rfb1 {[%clk 0:00:15]}  Rfd8 {[%clk 0:00:19]} 31. Na4 {[%clk 0:00:15]}  Nxh4 {[%clk 0:00:13]} 32. gxh4 {[%clk 0:00:15]}  Qxh4 {[%clk 0:00:13]} 33. Rxb6 {[%clk 0:00:16]}  Rxb6 {[%clk 0:00:07]} 34. Nxb6 {[%clk 0:00:16]}  g3 {[%clk 0:00:08]} 35. f3 {[%clk 0:00:15]}  Qf6 {[%clk 0:00:04]} 36. Qg2 {[%clk 0:00:15]}  Rb8 {[%clk 0:00:02]} 37. Ba5 {[%clk 0:00:15]}  Bf8 {[%clk 0:00:01]} 38. Qh3 {[%clk 0:00:15]} 1-0


[Site "https://www.chess.com"]

[Event "Titled Tuesday Blitz November 22 Early 2022"]
[White "Zhigalko, Sergei"]
[Black "Gurevich, Dmitry"]
[WhiteFideId "13502956"]
[BlackFideId "2000407"]
[WhiteElo "2662"]
[BlackElo "2506"]
[Result "1-0"]
[Round "02"]
[TimeControl "180+1"]
[Date "2022.11.23"]
[WhiteClock "0:02:11"]
[BlackClock "0:01:42"]

1. e4 {[%clk 0:03:00]}  c5 {[%clk 0:02:58]} 2. Nf3 {[%clk 0:03:00]}  d6 {[%clk 0:02:58]} 3. d4 {[%clk 0:03:01]}  cxd4 {[%clk 0:02:58]} 4. Qxd4 {[%clk 0:03:02]}  a6 {[%clk 0:02:56]} 5. Bc4 {[%clk 0:03:01]}  e6 {[%clk 0:02:55]} 6. Nc3 {[%clk 0:03:01]}  Nf6 {[%clk 0:02:51]} 7. Qd3 {[%clk 0:02:55]}  Nbd7 {[%clk 0:02:47]} 8. Bf4 {[%clk 0:02:50]}  Nc5 {[%clk 0:02:29]} 9. Qe3 {[%clk 0:02:50]}  b5 {[%clk 0:02:27]} 10. Bb3 {[%clk 0:02:51]}  Bb7 {[%clk 0:02:26]} 11. e5 {[%clk 0:02:41]}  Ng4 {[%clk 0:02:24]} 12. Qe2 {[%clk 0:02:39]}  Bxf3 {[%clk 0:01:52]} 13. Qxf3 {[%clk 0:02:23]}  Nxe5 {[%clk 0:01:49]} 14. Bxe5 {[%clk 0:02:22]}  dxe5 {[%clk 0:01:48]} 15. Qc6+ {[%clk 0:02:21]}  Nd7 {[%clk 0:01:48]} 16. O-O-O {[%clk 0:02:19]}  Rc8 {[%clk 0:01:47]} 17. Qxa6 {[%clk 0:02:18]}  b4 {[%clk 0:01:44]} 18. Rxd7 {[%clk 0:02:12]}  Qxd7 {[%clk 0:01:42]} 19. Ba4 {[%clk 0:02:11]} 1-0


[Site "https://www.chess.com"]

[Event "Titled Tuesday Blitz November 22 Early 2022"]
[White "Aarav Dengla"]
[Black "Durarbayli, Vasif"]
[WhiteFideId "45059756"]
[BlackFideId "13402935"]
[WhiteElo "2261"]
[BlackElo "2586"]
[Result "0-1"]
[Round "03"]
[TimeControl "180+1"]
[Date "2022.11.23"]
[WhiteClock "0:00:01"]
[BlackClock "0:00:04"]

1. e4 {[%clk 0:02:59]}  c5 {[%clk 0:02:59]} 2. Nf3 {[%clk 0:02:59]}  d6 {[%clk 0:03:00]} 3. d4 {[%clk 0:02:57]}  cxd4 {[%clk 0:03:01]} 4. Nxd4 {[%clk 0:02:58]}  Nf6 {[%clk 0:03:02]} 5. Nc3 {[%clk 0:02:57]}  a6 {[%clk 0:03:02]} 6. Rg1 {[%clk 0:02:57]}  e5 {[%clk 0:02:53]} 7. Nb3 {[%clk 0:02:56]}  Be6 {[%clk 0:02:52]} 8. g4 {[%clk 0:02:51]}  d5 {[%clk 0:02:52]} 9. exd5 {[%clk 0:02:49]}  Nxd5 {[%clk 0:02:53]} 10. Nxd5 {[%clk 0:02:50]}  Qxd5 {[%clk 0:02:54]} 11. Qxd5 {[%clk 0:02:50]}  Bxd5 {[%clk 0:02:55]} 12. Be3 {[%clk 0:02:50]}  Nc6 {[%clk 0:02:53]} 13. O-O-O {[%clk 0:02:50]}  O-O-O {[%clk 0:02:53]} 14. Bg2 {[%clk 0:02:49]}  Bxg2 {[%clk 0:02:47]} 15. Rxd8+ {[%clk 0:02:50]}  Kxd8 {[%clk 0:02:40]} 16. Rxg2 {[%clk 0:02:51]}  Kd7 {[%clk 0:02:41]} 17. Nd2 {[%clk 0:02:51]}  Ke6 {[%clk 0:02:35]} 18. Ne4 {[%clk 0:02:51]}  Be7 {[%clk 0:02:32]} 19. f3 {[%clk 0:02:50]}  Rc8 {[%clk 0:02:31]} 20. c3 {[%clk 0:02:50]}  f6 {[%clk 0:02:28]} 21. f4 {[%clk 0:02:41]}  exf4 {[%clk 0:02:13]} 22. Bxf4 {[%clk 0:02:42]}  Nb4 {[%clk 0:02:11]} 23. Bg3 {[%clk 0:02:17]}  Nd3+ {[%clk 0:01:47]} 24. Kc2 {[%clk 0:02:15]}  Ne5 {[%clk 0:01:47]} 25. Re2 {[%clk 0:02:14]}  b5 {[%clk 0:01:36]} 26. g5 {[%clk 0:01:48]}  Kf5 {[%clk 0:01:29]} 27. gxf6 {[%clk 0:01:45]}  gxf6 {[%clk 0:01:30]} 28. a3 {[%clk 0:01:29]}  Rc6 {[%clk 0:01:28]} 29. Nd2 {[%clk 0:01:26]}  Bc5 {[%clk 0:01:21]} 30. Re4 {[%clk 0:01:20]}  Bb6 {[%clk 0:01:10]} 31. Rh4 {[%clk 0:01:12]}  Kg6 {[%clk 0:01:09]} 32. Bxe5 {[%clk 0:01:06]}  fxe5 {[%clk 0:01:09]} 33. Nf3 {[%clk 0:01:07]}  Re6 {[%clk 0:00:56]} 34. Kd3 {[%clk 0:01:03]}  Kf5 {[%clk 0:00:56]} 35. Rh5+ {[%clk 0:00:44]}  Kf4 {[%clk 0:00:55]} 36. Ke2 {[%clk 0:00:33]}  e4 {[%clk 0:00:45]} 37. Rh4+ {[%clk 0:00:32]}  Kf5 {[%clk 0:00:46]} 38. Nd2 {[%clk 0:00:23]}  h6 {[%clk 0:00:39]} 39. Rh5+ {[%clk 0:00:22]}  Kg4 {[%clk 0:00:39]} 40. Rd5 {[%clk 0:00:20]}  Kf4 {[%clk 0:00:38]} 41. Rh5 {[%clk 0:00:19]}  Bd8 {[%clk 0:00:34]} 42. Rh3 {[%clk 0:00:17]}  Bg5 {[%clk 0:00:33]} 43. Rg3 {[%clk 0:00:17]}  Ke5 {[%clk 0:00:27]} 44. Rg4 {[%clk 0:00:14]}  Kf5 {[%clk 0:00:27]} 45. Rg1 {[%clk 0:00:14]}  Rd6 {[%clk 0:00:25]} 46. Nf1 {[%clk 0:00:13]}  Rd3 {[%clk 0:00:22]} 47. Rg3 {[%clk 0:00:09]}  Rd8 {[%clk 0:00:19]} 48. Rg2 {[%clk 0:00:09]}  Ke5 {[%clk 0:00:19]} 49. Rf2 {[%clk 0:00:09]}  Bf4 {[%clk 0:00:17]} 50. Rg2 {[%clk 0:00:09]}  Rd6 {[%clk 0:00:10]} 51. Rg8 {[%clk 0:00:09]}  Bg5 {[%clk 0:00:09]} 52. Re8+ {[%clk 0:00:09]}  Kd5 {[%clk 0:00:10]} 53. Ng3 {[%clk 0:00:08]}  e3 {[%clk 0:00:07]} 54. Nf5 {[%clk 0:00:08]}  Rg6 {[%clk 0:00:05]} 55. Rxe3 {[%clk 0:00:06]}  Kc4 {[%clk 0:00:04]} 56. Re4+ {[%clk 0:00:05]}  Kb3 {[%clk 0:00:04]} 57. Rb4+ {[%clk 0:00:05]}  Kc2 {[%clk 0:00:05]} 58. Nd4+ {[%clk 0:00:05]}  Kb1 {[%clk 0:00:05]} 59. b3 {[%clk 0:00:03]}  Be7 {[%clk 0:00:05]} 60. Kd3 {[%clk 0:00:01]}  Bxb4 {[%clk 0:00:05]} 61. axb4 {[%clk 0:00:02]}  Rg2 {[%clk 0:00:06]} 62. c4 {[%clk 0:00:03]}  Rxh2 {[%clk 0:00:05]} 63. cxb5 {[%clk 0:00:02]}  axb5 {[%clk 0:00:06]} 64. Nxb5 {[%clk 0:00:02]}  h5 {[%clk 0:00:06]} 65. Nd4 {[%clk 0:00:03]}  h4 {[%clk 0:00:05]} 66. b5 {[%clk 0:00:03]}  Rf2 {[%clk 0:00:03]} 67. b6 {[%clk 0:00:03]}  h3 {[%clk 0:00:03]} 68. Ke3 {[%clk 0:00:01]}  Rf8 {[%clk 0:00:04]} 69. Nf3 {[%clk 0:00:01]}  Kb2 {[%clk 0:00:04]} 0-1


[Site "https://www.chess.com"]